﻿Departmental Area,Entity,Payment Date,Expense type,Expense Area,Supplier Name,Payment Reference,      Invoice Distribution Amount      ,Description,Supplier Type,Expenditure Type
UK Statistics Family,Office for National Statistics,03/04/2023,Buildings Under Construction,Property Newport,Vinci Construction UK Limited,261925,"63,840.00",Facilities Mangement Services,Large,Programme Expenditure
UK Statistics Family,Office for National Statistics,03/04/2023,Buildings Under Construction,Property Titchfield,Vinci Construction UK Limited,261925,"129,544.75",Facilities Mangement Services,Large,Programme Expenditure
UK Statistics Family,Office for National Statistics,03/04/2023,Buildings Under Construction,Property Titchfield,Vinci Construction UK Limited,261925,"240,000.00",Facilities Mangement Services,Large,Programme Expenditure
UK Statistics Family,Office for National Statistics,03/04/2023,Buildings Under Construction,Property Christchurch,Vinci Construction UK Limited,261925,"47,250.00",Facilities Mangement Services,Large,Programme Expenditure
UK Statistics Family,Office for National Statistics,03/04/2023,Exp - Short-Term Contract & Agency Staff - Full Cost,Covid Infection Survey,Concept Information Technology Ltd T/A Concept Resourcing,261926,"2,591.11",Information Management Services,Large,Programme Expenditure
UK Statistics Family,Office for National Statistics,03/04/2023,Exp - Short-Term Contract & Agency Staff - Full Cost,Business Change Support,Concept Information Technology Ltd T/A Concept Resourcing,261926,"2,473.52",Information Management Services,Large,Programme Expenditure
UK Statistics Family,Office for National Statistics,03/04/2023,Exp - Short-Term Contract & Agency Staff - Full Cost,Business Change Support,Concept Information Technology Ltd T/A Concept Resourcing,261926,"3,163.50",Information Management Services,Large,Programme Expenditure
UK Statistics Family,Office for National Statistics,03/04/2023,Exp - Short-Term Contract & Agency Staff - Full Cost,Business Change Support,Concept Information Technology Ltd T/A Concept Resourcing,261926,"16,908.70",Information Management Services,Large,Programme Expenditure
UK Statistics Family,Office for National Statistics,03/04/2023,Exp - Short-Term Contract & Agency Staff - Full Cost,Business Change Support,Concept Information Technology Ltd T/A Concept Resourcing,261926,"12,232.20",Information Management Services,Large,Programme Expenditure
UK Statistics Family,Office for National Statistics,03/04/2023,Exp - Short-Term Contract & Agency Staff - Full Cost,Business Change Support,Concept Information Technology Ltd T/A Concept Resourcing,261926,"3,298.03",Information Management Services,Large,Programme Expenditure
UK Statistics Family,Office for National Statistics,03/04/2023,Exp - Short-Term Contract & Agency Staff - Full Cost,Business Change Support,Concept Information Technology Ltd T/A Concept Resourcing,261926,"30,562.29",Information Management Services,Large,Programme Expenditure
UK Statistics Family,Office for National Statistics,03/04/2023,Exp - Short-Term Contract & Agency Staff - Full Cost,Business Change Support,Concept Information Technology Ltd T/A Concept Resourcing,261926,6492.02,Information Management Services,Large,Programme Expenditure
UK Statistics Family,Office for National Statistics,03/04/2023,Exp - Short-Term Contract & Agency Staff - Full Cost,Business Change Support,Concept Information Technology Ltd T/A Concept Resourcing,261926,"7,516.03",Information Management Services,Large,Programme Expenditure
UK Statistics Family,Office for National Statistics,03/04/2023,Exp - Short-Term Contract & Agency Staff - Full Cost,Business Architecture Transformation And Statistical Strategy,Concept Information Technology Ltd T/A Concept Resourcing,261926,"3,163.50",Information Management Services,Large,Programme Expenditure
UK Statistics Family,Office for National Statistics,03/04/2023,Exp - Short-Term Contract & Agency Staff - Full Cost,Business Architecture Transformation And Statistical Strategy,Concept Information Technology Ltd T/A Concept Resourcing,261926,67.91,Information Management Services,Large,Programme Expenditure
UK Statistics Family,Office for National Statistics,03/04/2023,Exp - Short-Term Contract & Agency Staff - Full Cost,SUB-NATIONAL STATISTICS AND ANALYSIS,Concept Information Technology Ltd T/A Concept Resourcing,261926,2952.6,Information Management Services,Large,Programme Expenditure
UK Statistics Family,Office for National Statistics,03/04/2023,Exp - Short-Term Contract & Agency Staff - Full Cost,ANALYSIS FUNCTION STRATEGY AND DELIVERY,Concept Information Technology Ltd T/A Concept Resourcing,261926,"1,054.50",Information Management Services,Large,Programme Expenditure
UK Statistics Family,Office for National Statistics,03/04/2023,Exp - Short-Term Contract & Agency Staff - Full Cost,Ask Business Services,Concept Information Technology Ltd T/A Concept Resourcing,261926,"2,337.66",Information Management Services,Large,Programme Expenditure
UK Statistics Family,Office for National Statistics,03/04/2023,Exp - Short-Term Contract & Agency Staff - Full Cost,REPROGRAPHICS,Concept Information Technology Ltd T/A Concept Resourcing,261926,"4,201.49",Information Management Services,Large,Programme Expenditure
UK Statistics Family,Office for National Statistics,03/04/2023,Exp - Purchase Of Goods/Services - Contractors,CDIO UNGP,Concept Information Technology Ltd T/A Concept Resourcing,261926,14090.88,Information Management Services,Large,Programme Expenditure
UK Statistics Family,Office for National Statistics,03/04/2023,Exp - Short-Term Contract & Agency Staff - Full Cost,Strategy And Architecture,Concept Information Technology Ltd T/A Concept Resourcing,261926,"1,481.89",Information Management Services,Large,Programme Expenditure
UK Statistics Family,Office for National Statistics,03/04/2023,Exp - Short-Term Contract & Agency Staff - Full Cost,Prices Division,Concept Information Technology Ltd T/A Concept Resourcing,261926,"3,298.03",Information Management Services,Large,Programme Expenditure
UK Statistics Family,Office for National Statistics,03/04/2023,Exp - Short-Term Contract & Agency Staff - Full Cost,Prices Division,Concept Information Technology Ltd T/A Concept Resourcing,261926,"4,218.00",Information Management Services,Large,Programme Expenditure
UK Statistics Family,Office for National Statistics,03/04/2023,Exp - Short-Term Contract & Agency Staff - Full Cost,Business Outputs And Developments,Concept Information Technology Ltd T/A Concept Resourcing,261926,8436,Information Management Services,Large,Programme Expenditure
UK Statistics Family,Office for National Statistics,03/04/2023,Specialist User Software And Hardware,CLOUD ARCHITECTURE,Scc,261927,"9,568.44",Software Licenses,Large,Programme Expenditure
UK Statistics Family,Office for National Statistics,03/04/2023,IT Management And Change,IT Operations,Scc,261927,36490.81,Software Licenses,Large,Programme Expenditure
UK Statistics Family,Office for National Statistics,03/04/2023,Exp - Purchase Of Goods/Services - Contractors,Testing,La International,261931,"13,187.58",Information Management Services,SME,Programme Expenditure
UK Statistics Family,Office for National Statistics,03/04/2023,Exp - Purchase Of Goods/Services - Contractors,Security And Information Management Saim,La International,261931,"17,100.00",Information Management Services,SME,Programme Expenditure
UK Statistics Family,Office for National Statistics,03/04/2023,Exp - Purchase Of Goods/Services - Contractors,Data Architecture,La International,261931,"12,014.46",Information Management Services,SME,Programme Expenditure
UK Statistics Family,Office for National Statistics,03/04/2023,Exp - Purchase Of Goods/Services - Contractors,Data Architecture,La International,261931,"4,281.18",Information Management Services,SME,Programme Expenditure
UK Statistics Family,Office for National Statistics,03/04/2023,Exp - Purchase Of Goods/Services - Contractors,IT Applications,La International,261931,4581.18,Information Management Services,SME,Programme Expenditure
UK Statistics Family,Office for National Statistics,04/04/2023,Surveys,Social Surveys Division,Natcen Social Research,262243,"1,401,661.53",Statistical Services,Large,Programme Expenditure
UK Statistics Family,Office for National Statistics,04/04/2023,Exp - Purchase Of Goods/Services - Incentive Payments,Social Surveys Division,Natcen Social Research,262243,"51,394.00",Statistical Services,Large,Programme Expenditure
UK Statistics Family,Office for National Statistics,04/04/2023,Capital Major Works >25K,Property Newport,Vinci Construction UK Limited,262244,"34,461.48",Facilities Mangement Services,Large,Programme Expenditure
UK Statistics Family,Office for National Statistics,04/04/2023,Capital Major Works >25K,Property Newport,Vinci Construction UK Limited,262244,"343,109.56",Facilities Mangement Services,Large,Programme Expenditure
UK Statistics Family,Office for National Statistics,04/04/2023,Exp - Short-Term Contract & Agency Staff - Full Cost,GSS Strategy Delivery,Concept Information Technology Ltd T/A Concept Resourcing,262245,"3,120.77",Information Management Services,Large,Programme Expenditure
UK Statistics Family,Office for National Statistics,04/04/2023,Exp - Short-Term Contract & Agency Staff - Full Cost,Business Change Support,Concept Information Technology Ltd T/A Concept Resourcing,262245,"4,218.00",Information Management Services,Large,Programme Expenditure
UK Statistics Family,Office for National Statistics,04/04/2023,Exp - Short-Term Contract & Agency Staff - Full Cost,Productivity Research And Professional Development,Concept Information Technology Ltd T/A Concept Resourcing,262245,"4,175.26",Information Management Services,Large,Programme Expenditure
UK Statistics Family,Office for National Statistics,04/04/2023,Exp - Short-Term Contract & Agency Staff - Full Cost,Productivity Research And Professional Development,Concept Information Technology Ltd T/A Concept Resourcing,262245,"10,545.00",Information Management Services,Large,Programme Expenditure
UK Statistics Family,Office for National Statistics,04/04/2023,Exp - Short-Term Contract & Agency Staff - Full Cost,SUB-NATIONAL STATISTICS AND ANALYSIS,Concept Information Technology Ltd T/A Concept Resourcing,262245,"5,272.50",Information Management Services,Large,Programme Expenditure
UK Statistics Family,Office for National Statistics,04/04/2023,Exp - Short-Term Contract & Agency Staff - Full Cost,Public Sector And Households,Concept Information Technology Ltd T/A Concept Resourcing,262245,"3,796.20",Information Management Services,Large,Programme Expenditure
UK Statistics Family,Office for National Statistics,04/04/2023,Exp - Short-Term Contract & Agency Staff - Full Cost,Social Surveys Division,Concept Information Technology Ltd T/A Concept Resourcing,262245,"3,374.40",Information Management Services,Large,Programme Expenditure
UK Statistics Family,Office for National Statistics,04/04/2023,Exp - Short-Term Contract & Agency Staff - Full Cost,Corporations,Concept Information Technology Ltd T/A Concept Resourcing,262245,"4,788.00",Information Management Services,Large,Programme Expenditure
UK Statistics Family,Office for National Statistics,04/04/2023,"ICT Outsourcing, Maintenance And Support",Data Architecture,Scc,262248,"53,646.41",Software Licenses,Large,Programme Expenditure
UK Statistics Family,Office for National Statistics,04/04/2023,"ICT Outsourcing, Maintenance And Support",IT Operations,Scc,262248,"5,239.58",Information Management Services,Large,Programme Expenditure
UK Statistics Family,Office for National Statistics,04/04/2023,Exp - Purchase Of Goods/Services - IT Contractual Services,IT Operations,Ibm United Kingdom Ltd,262250,"104,409.60",Information Management Services,Large,Programme Expenditure
UK Statistics Family,Office for National Statistics,04/04/2023,Exp - Purchase Of Goods/Services - IT Contractual Services,IT Operations,Ibm United Kingdom Ltd,262250,"93,916.80",Information Management Services,Large,Programme Expenditure
UK Statistics Family,Office for National Statistics,04/04/2023,Exp - Purchase Of Goods/Services - Contractors,Data Architecture,La International,262258,"7,963.56",Information Management Services,SME,Programme Expenditure
UK Statistics Family,Office for National Statistics,04/04/2023,Exp - Purchase Of Goods/Services - Contractors,CLOUD ARCHITECTURE,La International,262258,"14,161.07",Information Management Services,SME,Programme Expenditure
UK Statistics Family,Office for National Statistics,04/04/2023,Exp - Purchase Of Goods/Services - Contractors,Tech Delivery Next Gen IT And Infrastructure,La International,262258,"2,306.77",Information Management Services,SME,Programme Expenditure
UK Statistics Family,Office for National Statistics,04/04/2023,Exp - Purchase Of Goods/Services - Contractors,IT Operations,La International,262258,"30,804.00",Information Management Services,SME,Programme Expenditure
UK Statistics Family,Office for National Statistics,04/04/2023,"ICT Outsourcing, Maintenance And Support",IT Operations,Computacenter (Uk) Limited,262262,158815.82,Software Licenses,Large,Programme Expenditure
UK Statistics Family,Office for National Statistics,04/04/2023,Exp - Purchase Of Goods/Services - IT Contractual Services,CDIO UNGP,CTS (Cloud Technology Solutions Ltd),262264,"98,775.00",Information Management Services,Large,Programme Expenditure
UK Statistics Family,Office for National Statistics,04/04/2023,Hosting,CLOUD ARCHITECTURE,Amazon Web Services Inc,262266,"260,994.99",Information Management Services,Large,Programme Expenditure
UK Statistics Family,Office for National Statistics,04/04/2023,Hosting,CDIO UNGP,Amazon Web Services Inc,262266,1.41,Information Management Services,Large,Programme Expenditure
UK Statistics Family,Office for National Statistics,04/04/2023,Exp - Purchase Of Goods/Services - Contractors,Data Architecture,SmartSourcing Ltd,262271,"21,581.57",Information Management Services,SME,Programme Expenditure
UK Statistics Family,Office for National Statistics,04/04/2023,Exp - Purchase Of Goods/Services - Contractors,IT Applications,SmartSourcing Ltd,262271,"3,600.00",Information Management Services,SME,Programme Expenditure
UK Statistics Family,Office for National Statistics,04/04/2023,Exp - Purchase Of Goods/Services - Contractors,IT Operations,SmartSourcing Ltd,262271,"25,500.00",Information Management Services,SME,Programme Expenditure
UK Statistics Family,Office for National Statistics,04/04/2023,Exp - Purchase Of Goods/Services - Contractors,Data Capability,Parity Resources Limited,262272,"10,888.14",Information Management Services,Large,Programme Expenditure
UK Statistics Family,Office for National Statistics,04/04/2023,Exp - Short-Term Contract & Agency Staff - Full Cost,Finance,Parity Resources Limited,262272,"4,377.84",Information Management Services,Large,Programme Expenditure
UK Statistics Family,Office for National Statistics,04/04/2023,Exp - Short-Term Contract & Agency Staff - Full Cost,Recruitment ,Parity Resources Limited,262272,"3,019.20",Information Management Services,Large,Programme Expenditure
UK Statistics Family,Office for National Statistics,04/04/2023,Exp - Short-Term Contract & Agency Staff - Full Cost,Interviewer Management FiF,Parity Resources Limited,262272,"7,488.08",Information Management Services,Large,Programme Expenditure
UK Statistics Family,Office for National Statistics,04/04/2023,Exp - Purchase Of Goods/Services - Census Field Costs,Interviewer Management FiF,Parity Resources Limited,262272,1451.08,Information Management Services,Large,Programme Expenditure
UK Statistics Family,Office for National Statistics,05/04/2023,Exp - Purchase Of Goods/Services - Other ICT Costs Software,Finance,Scc,262389,"28,737.79",Software Licenses,Large,Programme Expenditure
UK Statistics Family,Office for National Statistics,05/04/2023,Exp - Purchase Of Goods/Services - Contractors,Data Architecture,Certes Computing Ltd,262391,"9,180.36",Information Management Services,SME,Programme Expenditure
UK Statistics Family,Office for National Statistics,05/04/2023,Exp - Purchase Of Goods/Services - Contractors,Digital Delivery,Certes Computing Ltd,262391,"20,250.00",Information Management Services,SME,Programme Expenditure
UK Statistics Family,Office for National Statistics,05/04/2023,Exp - Purchase Of Goods/Services - Contractors,Business Architecture Transformation And Statistical Strategy,Malikshaw Interim & Executive,262394,"17,940.00",Information Management Services,SME,Programme Expenditure
UK Statistics Family,Office for National Statistics,05/04/2023,Exp - Purchase Of Goods/Services - Contractors,INTEGRATED DATA STRATEGY AND DELIVERY,Malikshaw Interim & Executive,262394,"10,313.64",Information Management Services,SME,Programme Expenditure
UK Statistics Family,Office for National Statistics,05/04/2023,Exp - Purchase Of Goods/Services - Contractors,Data Architecture,Malikshaw Interim & Executive,262394,"14,644.80",Information Management Services,SME,Programme Expenditure
UK Statistics Family,Office for National Statistics,05/04/2023,Exp - Purchase Of Goods/Services - Contractors,CDIO UNGP,Malikshaw Interim & Executive,262394,"17,940.00",Information Management Services,SME,Programme Expenditure
UK Statistics Family,Office for National Statistics,05/04/2023,Exp - Purchase Of Goods/Services - Contractors,CDIO UNGP,Malikshaw Interim & Executive,262394,"4,068.00",Information Management Services,SME,Programme Expenditure
UK Statistics Family,Office for National Statistics,05/04/2023,Exp - Short-Term Contract & Agency Staff - Full Cost,Strategy And Architecture,Malikshaw Interim & Executive,262394,"3,922.38",Information Management Services,SME,Programme Expenditure
UK Statistics Family,Office for National Statistics,05/04/2023,Exp - Purchase Of Goods/Services - Contractors,IT Operations,Malikshaw Interim & Executive,262394,"20,644.80",Information Management Services,SME,Programme Expenditure
UK Statistics Family,Office for National Statistics,05/04/2023,Training & Development,Learning And Capability,Reflexion Associates Limited,262398,"25,200.00",Training and Educational Services,SME,Programme Expenditure
UK Statistics Family,Office for National Statistics,05/04/2023,Exp - Purchase Of Goods/Services - IT Contractual Services,Office Of Chief Data And Information,Armakuni Ltd,262399,"27,492.00",Information Management Services,SME,Programme Expenditure
UK Statistics Family,Office for National Statistics,05/04/2023,Exp - Purchase Of Goods/Services - Contractors,Programme Support,Parity Resources Limited,262402,"3,600.00",Information Management Services,Large,Programme Expenditure
UK Statistics Family,Office for National Statistics,05/04/2023,Exp - Purchase Of Goods And Services Consultants,Analysis Microdata And Engagement,Parity Resources Limited,262402,740.11,Information Management Services,Large,Programme Expenditure
UK Statistics Family,Office for National Statistics,05/04/2023,Exp - Purchase Of Goods/Services - Contractors,BUSINESS STRATEGY PERFORMANCE AND PMO,Parity Resources Limited,262402,"5,100.00",Information Management Services,Large,Programme Expenditure
UK Statistics Family,Office for National Statistics,05/04/2023,Exp - Purchase Of Goods/Services - Contractors,Data Architecture,Parity Resources Limited,262402,"4,810.50",Information Management Services,Large,Programme Expenditure
UK Statistics Family,Office for National Statistics,05/04/2023,Exp - Purchase Of Goods/Services - Contractors,CDIO UNGP,Parity Resources Limited,262402,"4,600.50",Information Management Services,Large,Programme Expenditure
UK Statistics Family,Office for National Statistics,05/04/2023,Exp - Purchase Of Goods/Services - Contractors,Strategy And Architecture,Parity Resources Limited,262402,"12,631.50",Information Management Services,Large,Programme Expenditure
UK Statistics Family,Office for National Statistics,05/04/2023,Exp - Purchase Of Goods/Services - Contractors,Strategy And Architecture,Parity Resources Limited,262402,"4,210.50",Information Management Services,Large,Programme Expenditure
UK Statistics Family,Office for National Statistics,05/04/2023,Exp - Purchase Of Goods/Services - Contractors,Tech Delivery Legacy Sp,Parity Resources Limited,262402,"2,699.22",Information Management Services,Large,Programme Expenditure
UK Statistics Family,Office for National Statistics,05/04/2023,Exp - Purchase Of Goods/Services - Contractors,IT Operations,Parity Resources Limited,262402,"7,390.50",Information Management Services,Large,Programme Expenditure
UK Statistics Family,Office for National Statistics,05/04/2023,Exp - Short-Term Contract & Agency Staff - Full Cost,Interviewer Management FiF,Parity Resources Limited,262402,105.47,Information Management Services,Large,Programme Expenditure
UK Statistics Family,Office for National Statistics,05/04/2023,Exp - Purchase Of Goods/Services - Census Field Costs,Interviewer Management FiF,Parity Resources Limited,262402,23.76,Information Management Services,Large,Programme Expenditure
UK Statistics Family,Office for National Statistics,06/04/2023,Capital Major Works >25K,Property Newport,Vinci Construction UK Limited,262498,"60,185.76",Facilities Mangement Services,Large,Programme Expenditure
UK Statistics Family,Office for National Statistics,06/04/2023,Capital Major Works >25K,Property Titchfield,Vinci Construction UK Limited,262498,"56,700.00",Facilities Mangement Services,Large,Programme Expenditure
UK Statistics Family,Office for National Statistics,06/04/2023,Major Works Over £25K,Property Titchfield,Vinci Construction UK Limited,262498,"73,858.44",Facilities Mangement Services,Large,Programme Expenditure
UK Statistics Family,Office for National Statistics,06/04/2023,Exp - Purchase Of Goods/Services - IT Contractual Services,IT Operations,Somerford Associates,262501,"48,000.00",Information Management Services,Large,Programme Expenditure
UK Statistics Family,Office for National Statistics,06/04/2023,Hosting,CLOUD ARCHITECTURE,CTS (Cloud Technology Solutions Ltd),262511,89.48,Information Management Services,Large,Programme Expenditure
UK Statistics Family,Office for National Statistics,06/04/2023,Hosting,CLOUD ARCHITECTURE,CTS (Cloud Technology Solutions Ltd),262511,"206,291.35",Information Management Services,Large,Programme Expenditure
UK Statistics Family,Office for National Statistics,06/04/2023,Exp - Purchase Of Goods/Services - IT Contractual Services,IT Applications,Diegesis Limited,262514,"300,300.00",Information Management Services,Large,Programme Expenditure
UK Statistics Family,Office for National Statistics,06/04/2023,Exp - Purchase Of Goods/Services - Contractors,Data Architecture,LA FOSSE ASSOCIATES LIMITED,262516,"20,160.00",Information Management Services,Large,Programme Expenditure
UK Statistics Family,Office for National Statistics,06/04/2023,Exp - Purchase Of Goods/Services - Contractors,Digital Delivery,LA FOSSE ASSOCIATES LIMITED,262516,"2,160.00",Information Management Services,Large,Programme Expenditure
UK Statistics Family,Office for National Statistics,06/04/2023,Exp - Purchase Of Goods/Services - Contractors,Digital Delivery,LA FOSSE ASSOCIATES LIMITED,262516,"11,160.00",Information Management Services,Large,Programme Expenditure
UK Statistics Family,Office for National Statistics,06/04/2023,Exp - Short-Term Contract & Agency Staff - Full Cost,Beyond 2021 Research And Design,Talent International,262520,"11,215.69",Information Management Services,SME,Programme Expenditure
UK Statistics Family,Office for National Statistics,06/04/2023,Exp - Purchase Of Goods/Services - Contractors,Covid Infection Survey,Talent International,262520,14950,Information Management Services,SME,Programme Expenditure
UK Statistics Family,Office for National Statistics,06/04/2023,Exp - Purchase Of Goods/Services - Contractors,Covid Infection Survey,Talent International,262520,"19,500.00",Information Management Services,SME,Programme Expenditure
UK Statistics Family,Office for National Statistics,06/04/2023,Exp - Purchase Of Goods/Services - Contractors,ECONOMIC CHANGE,Talent International,262520,"12,960.00",Information Management Services,SME,Programme Expenditure
UK Statistics Family,Office for National Statistics,06/04/2023,Exp - Purchase Of Goods/Services - Contractors,Security Advisory,Talent International,262520,"17,999.76",Information Management Services,SME,Programme Expenditure
UK Statistics Family,Office for National Statistics,06/04/2023,Exp - Short-Term Contract & Agency Staff - Full Cost,Data Management Audit And Compliance,Talent International,262520,"3,283.82",Information Management Services,SME,Programme Expenditure
UK Statistics Family,Office for National Statistics,06/04/2023,Exp - Short-Term Contract & Agency Staff - Full Cost,Population Statistics Div,Talent International,262520,"5,095.79",Information Management Services,SME,Programme Expenditure
UK Statistics Family,Office for National Statistics,06/04/2023,Exp - Purchase Of Goods/Services - Contractors,Data Architecture,Talent International,262520,"21,000.00",Information Management Services,SME,Programme Expenditure
UK Statistics Family,Office for National Statistics,06/04/2023,Exp - Short-Term Contract & Agency Staff - Full Cost,Strategy And Architecture,Talent International,262520,"1,107.78",Information Management Services,SME,Programme Expenditure
UK Statistics Family,Office for National Statistics,06/04/2023,Exp - Purchase Of Goods/Services - Contractors,Strategy And Architecture,Talent International,262520,"10,080.00",Information Management Services,SME,Programme Expenditure
UK Statistics Family,Office for National Statistics,06/04/2023,Exp - Purchase Of Goods/Services - Contractors,IT Applications,Talent International,262520,"17,970.00",Information Management Services,SME,Programme Expenditure
UK Statistics Family,Office for National Statistics,06/04/2023,Exp - Purchase Of Goods/Services - Contractors,IT Operations,Talent International,262520,"41,099.71",Information Management Services,SME,Programme Expenditure
UK Statistics Family,Office for National Statistics,06/04/2023,Exp - Short-Term Contract & Agency Staff - Full Cost,Data Science Campus,Talent International,262520,557.14,Information Management Services,SME,Programme Expenditure
UK Statistics Family,Office for National Statistics,06/04/2023,End User Software And Hardware,Divisional Management,Granicus-Firmstep Limited,262526,"50,624.40",Software Licenses,Large,Programme Expenditure
UK Statistics Family,Office for National Statistics,11/04/2023,Exp - Purchase Of Goods/Services - Incentive Payments,Survey Management,Banner Group Ltd,262627,"62,665.20",Survey Response Incentive Items,SME,Programme Expenditure
UK Statistics Family,Office for National Statistics,12/04/2023,Exp - Purchase Of Goods/Services - Contractors,Testing,Certes Computing Ltd,262882,"14,699.34",Information Management Services,SME,Programme Expenditure
UK Statistics Family,Office for National Statistics,12/04/2023,Exp - Purchase Of Goods/Services - Contractors,Programme Support,Certes Computing Ltd,262882,"15,600.00",Information Management Services,SME,Programme Expenditure
UK Statistics Family,Office for National Statistics,12/04/2023,Exp - Purchase Of Goods/Services - Contractors,Digital Media,Certes Computing Ltd,262882,"13,450.50",Information Management Services,SME,Programme Expenditure
UK Statistics Family,Office for National Statistics,12/04/2023,Exp - Purchase Of Goods/Services - Contractors,Security Advisory,Certes Computing Ltd,262882,"22,494.83",Information Management Services,SME,Programme Expenditure
UK Statistics Family,Office for National Statistics,12/04/2023,Exp - Purchase Of Goods/Services - Contractors,CLOUD ARCHITECTURE,Certes Computing Ltd,262882,"8,802.32",Information Management Services,SME,Programme Expenditure
UK Statistics Family,Office for National Statistics,12/04/2023,Exp - Purchase Of Goods/Services - Contractors,Interviewer Management FiF,Certes Computing Ltd,262882,"31,050.00",Information Management Services,SME,Programme Expenditure
UK Statistics Family,Office for National Statistics,12/04/2023,"ICT Outsourcing, Maintenance And Support",IT Operations,Bytes Software Services Ltd,262886,"25,790.59",Software Licenses,Large,Programme Expenditure
UK Statistics Family,Office for National Statistics,12/04/2023,Exp - Short-Term Contract & Agency Staff - Full Cost,Population Statistics Div,Malikshaw Interim & Executive,262891,"5,136.64",Information Management Services,SME,Programme Expenditure
UK Statistics Family,Office for National Statistics,12/04/2023,Exp - Short-Term Contract & Agency Staff - Full Cost,Census & Soc Methodology Dd,Malikshaw Interim & Executive,262891,"5,136.64",Information Management Services,SME,Programme Expenditure
UK Statistics Family,Office for National Statistics,12/04/2023,Exp - Purchase Of Goods/Services - Incentive Payments,Survey Management,Sodexo Motivation Solutions U.K. ltd,262894,"1,766.56",Survey Response Incentive Vouchers,Large,Programme Expenditure
UK Statistics Family,Office for National Statistics,12/04/2023,Exp - Purchase Of Goods/Services - Incentive Payments,Survey Management,Sodexo Motivation Solutions U.K. ltd,262894,"3,633.94",Survey Response Incentive Vouchers,Large,Programme Expenditure
UK Statistics Family,Office for National Statistics,12/04/2023,Exp - Purchase Of Goods/Services - Incentive Payments,Survey Management,Sodexo Motivation Solutions U.K. ltd,262894,"3,694.09",Survey Response Incentive Vouchers,Large,Programme Expenditure
UK Statistics Family,Office for National Statistics,12/04/2023,Exp - Purchase Of Goods/Services - Contractors,Data Architecture,Malikshaw Interim & Executive,262891,"20,092.80",Information Management Services,SME,Programme Expenditure
UK Statistics Family,Office for National Statistics,12/04/2023,Exp - Purchase Of Goods/Services - Incentive Payments,Survey Management,Sodexo Motivation Solutions U.K. ltd,262894,"68,588.94",Survey Response Incentive Vouchers,Large,Programme Expenditure
UK Statistics Family,Office for National Statistics,12/04/2023,Exp - Purchase Of Goods/Services - Incentive Payments,Survey Management,Sodexo Motivation Solutions U.K. ltd,262894,"11,764.05",Survey Response Incentive Vouchers,Large,Programme Expenditure
UK Statistics Family,Office for National Statistics,12/04/2023,Exp - Purchase Of Goods/Services - Incentive Payments,Survey Management,Sodexo Motivation Solutions U.K. ltd,262894,"17,787.38",Survey Response Incentive Vouchers,Large,Programme Expenditure
UK Statistics Family,Office for National Statistics,12/04/2023,Exp - Purchase Of Goods/Services - Incentive Payments,Social Surveys Division,Sodexo Motivation Solutions U.K. ltd,262894,98.68,Survey Response Incentive Vouchers,Large,Programme Expenditure
UK Statistics Family,Office for National Statistics,12/04/2023,Exp - Purchase Of Goods/Services - Contractors,Data Capability,Parity Resources Limited,262897,"13,065.74",Information Management Services,Large,Programme Expenditure
UK Statistics Family,Office for National Statistics,12/04/2023,Exp - Purchase Of Goods/Services - Contractors,Security Advisory,Parity Resources Limited,262897,18042,Information Management Services,Large,Programme Expenditure
UK Statistics Family,Office for National Statistics,12/04/2023,Exp - Purchase Of Goods/Services - Contractors,CDIO UNGP,Parity Resources Limited,262897,3680.4,Information Management Services,Large,Programme Expenditure
UK Statistics Family,Office for National Statistics,12/04/2023,Exp - Short-Term Contract & Agency Staff - Full Cost,Census & Soc Methodology Dd,Talent International,262900,"9,970.02",Information Management Services,SME,Programme Expenditure
UK Statistics Family,Office for National Statistics,12/04/2023,Exp - Purchase Of Goods/Services - Contractors,Data Architecture,Talent International,262900,"42,840.00",Information Management Services,SME,Programme Expenditure
UK Statistics Family,Office for National Statistics,12/04/2023,Exp - Purchase Of Goods And Services Consultants,Overseas Development,Overseas Development Institute,262907,"26,159.91",National Institute of Statistics of Rwanda Support,SME,Programme Expenditure
UK Statistics Family,Office for National Statistics,13/04/2023,Exp - Short-Term Contract & Agency Staff - Full Cost,GSS Strategy Delivery,Concept Information Technology Ltd T/A Concept Resourcing,263045,"4,218.00",Information Management Services,Large,Programme Expenditure
UK Statistics Family,Office for National Statistics,13/04/2023,Exp - Short-Term Contract & Agency Staff - Full Cost,SUB-NATIONAL STATISTICS AND ANALYSIS,Concept Information Technology Ltd T/A Concept Resourcing,263045,17594.96,Information Management Services,Large,Programme Expenditure
UK Statistics Family,Office for National Statistics,13/04/2023,Exp - Short-Term Contract & Agency Staff - Full Cost,Best Practice And Impact,Concept Information Technology Ltd T/A Concept Resourcing,263045,"4,218.00",Information Management Services,Large,Programme Expenditure
UK Statistics Family,Office for National Statistics,13/04/2023,Exp - Short-Term Contract & Agency Staff - Full Cost,Prices Division,Concept Information Technology Ltd T/A Concept Resourcing,263045,"3,135.00",Information Management Services,Large,Programme Expenditure
UK Statistics Family,Office for National Statistics,13/04/2023,Exp - Purchase Of Goods/Services - Contractors,Data Architecture,Certes Computing Ltd,263047,"20,286.83",Information Management Services,SME,Programme Expenditure
UK Statistics Family,Office for National Statistics,13/04/2023,Exp - Purchase Of Goods/Services - Contractors,IT Applications,Certes Computing Ltd,263047,"19,734.83",Information Management Services,SME,Programme Expenditure
UK Statistics Family,Office for National Statistics,13/04/2023,Exp - Purchase Of Goods/Services - IT Contractual Services,PARTNERSHIP DEVELOPMENT,CGI IT UK Limited,263052,"352,616.77",Information Management Services,Large,Programme Expenditure
UK Statistics Family,Office for National Statistics,13/04/2023,Other Goods And Services,2023 CENSUS DATA TRANSFORMATION,The Sensible Code Company,263053,"302,400.00",Statistical Services,SME,Programme Expenditure
UK Statistics Family,Office for National Statistics,13/04/2023,Exp - Purchase Of Goods/Services - Contractors,Programme Support,Parity Resources Limited,263057,"3,600.00",Information Management Services,Large,Programme Expenditure
UK Statistics Family,Office for National Statistics,13/04/2023,Exp - Short-Term Contract & Agency Staff - Full Cost,Recruitment ,Parity Resources Limited,263057,"3,631.20",Information Management Services,Large,Programme Expenditure
UK Statistics Family,Office for National Statistics,13/04/2023,Exp - Purchase Of Goods/Services - Contractors,Security Advisory,Parity Resources Limited,263057,"19,789.36",Information Management Services,Large,Programme Expenditure
UK Statistics Family,Office for National Statistics,13/04/2023,Exp - Purchase Of Goods/Services - Contractors,BUSINESS STRATEGY PERFORMANCE AND PMO,Parity Resources Limited,263057,"5,100.00",Information Management Services,Large,Programme Expenditure
UK Statistics Family,Office for National Statistics,13/04/2023,Exp - Purchase Of Goods/Services - Contractors,Data Architecture,Parity Resources Limited,263057,"1,924.20",Information Management Services,Large,Programme Expenditure
UK Statistics Family,Office for National Statistics,13/04/2023,Exp - Purchase Of Goods/Services - Contractors,CDIO UNGP,Parity Resources Limited,263057,920.1,Information Management Services,Large,Programme Expenditure
UK Statistics Family,Office for National Statistics,13/04/2023,Exp - Purchase Of Goods/Services - Contractors,Strategy And Architecture,Parity Resources Limited,263057,"4,210.50",Information Management Services,Large,Programme Expenditure
UK Statistics Family,Office for National Statistics,13/04/2023,Exp - Purchase Of Goods/Services - Contractors,Strategy And Architecture,Parity Resources Limited,263057,4210.5,Information Management Services,Large,Programme Expenditure
UK Statistics Family,Office for National Statistics,13/04/2023,Exp - Purchase Of Goods/Services - Contractors,Tech Delivery Legacy Sp,Parity Resources Limited,263057,"2,699.22",Information Management Services,Large,Programme Expenditure
UK Statistics Family,Office for National Statistics,13/04/2023,Exp - Purchase Of Goods/Services - Contractors,IT Applications,Parity Resources Limited,263057,"14,139.90",Information Management Services,Large,Programme Expenditure
UK Statistics Family,Office for National Statistics,13/04/2023,Exp - Purchase Of Goods/Services - Contractors,IT Operations,Parity Resources Limited,263057,"4,800.00",Information Management Services,Large,Programme Expenditure
UK Statistics Family,Office for National Statistics,13/04/2023,Exp - Short-Term Contract & Agency Staff - Full Cost,Finance,Talent International,263058,"7,958.70",Information Management Services,SME,Programme Expenditure
UK Statistics Family,Office for National Statistics,13/04/2023,Exp - Short-Term Contract & Agency Staff - Full Cost,Data Management Audit And Compliance,Talent International,263058,"3,106.32",Information Management Services,SME,Programme Expenditure
UK Statistics Family,Office for National Statistics,13/04/2023,Exp - Purchase Of Goods/Services - Contractors,Data Architecture,Talent International,263058,"18,240.00",Information Management Services,SME,Programme Expenditure
UK Statistics Family,Office for National Statistics,13/04/2023,Exp - Purchase Of Goods/Services - Contractors,Data Science Campus,Talent International,263058,"20,250.00",Information Management Services,SME,Programme Expenditure
UK Statistics Family,Office for National Statistics,14/04/2023,Exp - Purchase Of Goods And Services Consultants,2023 CENSUS DATA TRANSFORMATION,University of Salford,263162,"150,000.00",Digitisation Services,Large,Programme Expenditure
UK Statistics Family,Office for National Statistics,14/04/2023,Exp - Purchase Of Goods/Services - Contractors,Testing,La International,263163,"12,964.87",Information Management Services,SME,Programme Expenditure
UK Statistics Family,Office for National Statistics,14/04/2023,Exp - Purchase Of Goods/Services - Contractors,Testing,La International,263163,"3,317.65",Information Management Services,SME,Programme Expenditure
UK Statistics Family,Office for National Statistics,14/04/2023,Exp - Purchase Of Goods/Services - Contractors,Data Architecture,La International,263163,"7,963.56",Information Management Services,SME,Programme Expenditure
UK Statistics Family,Office for National Statistics,14/04/2023,Exp - Purchase Of Goods/Services - Contractors,Data Architecture,La International,263163,"4,281.18",Information Management Services,SME,Programme Expenditure
UK Statistics Family,Office for National Statistics,14/04/2023,Other Goods And Services,ONS Corporate Funds,Edenred (UK Group) Limited,263167,131050,Performance Reward Vouchers,Large,Programme Expenditure
UK Statistics Family,Office for National Statistics,14/04/2023,Exp - Purchase Of Goods/Services - IT Contractual Services,Strategy And Architecture,Chaucer Group Ltd,263168,"28,317.60",Information Management Services,SME,Programme Expenditure
UK Statistics Family,Office for National Statistics,14/04/2023,"ICT Outsourcing, Maintenance And Support",IT Operations,Akhter Computers PLC,263170,"30,463.20",Software Licenses,SME,Programme Expenditure
UK Statistics Family,Office for National Statistics,17/04/2023,Exp - Purchase Of Goods/Services - IT Contractual Services,CDIO UNGP,Microsoft Limited,263245,"37,437.00",Information Management Services,Large,Programme Expenditure
UK Statistics Family,Office for National Statistics,18/04/2023,Exp - Short-Term Contract & Agency Staff - Full Cost,Sustainability And Inequalities,Concept Information Technology Ltd T/A Concept Resourcing,263448,3676.5,Information Management Services,Large,Programme Expenditure
UK Statistics Family,Office for National Statistics,18/04/2023,Exp - Short-Term Contract & Agency Staff - Full Cost,ANALYSIS FUNCTION STRATEGY AND DELIVERY,Concept Information Technology Ltd T/A Concept Resourcing,263448,"3,163.50",Information Management Services,Large,Programme Expenditure
UK Statistics Family,Office for National Statistics,18/04/2023,Exp - Short-Term Contract & Agency Staff - Full Cost,Public Sector And Households,Concept Information Technology Ltd T/A Concept Resourcing,263448,"5,247.00",Information Management Services,Large,Programme Expenditure
UK Statistics Family,Office for National Statistics,18/04/2023,Exp - Short-Term Contract & Agency Staff - Full Cost,Public Sector And Households,Concept Information Technology Ltd T/A Concept Resourcing,263448,"4,218.00",Information Management Services,Large,Programme Expenditure
UK Statistics Family,Office for National Statistics,18/04/2023,Exp - Short-Term Contract & Agency Staff - Full Cost,Public Sector And Households,Concept Information Technology Ltd T/A Concept Resourcing,263448,"4,161.00",Information Management Services,Large,Programme Expenditure
UK Statistics Family,Office for National Statistics,18/04/2023,Exp - Short-Term Contract & Agency Staff - Full Cost,Public Sector And Households,Concept Information Technology Ltd T/A Concept Resourcing,263448,"2,473.53",Information Management Services,Large,Programme Expenditure
UK Statistics Family,Office for National Statistics,18/04/2023,Exp - Short-Term Contract & Agency Staff - Full Cost,Public Sector And Households,Concept Information Technology Ltd T/A Concept Resourcing,263448,"5,913.77",Information Management Services,Large,Programme Expenditure
UK Statistics Family,Office for National Statistics,18/04/2023,Exp - Short-Term Contract & Agency Staff - Full Cost,Public Sector And Households,Concept Information Technology Ltd T/A Concept Resourcing,263448,"5,177.04",Information Management Services,Large,Programme Expenditure
UK Statistics Family,Office for National Statistics,18/04/2023,End User Software And Hardware,IT Operations,Scc,263449,"70,274.64",Software Licenses,Large,Programme Expenditure
UK Statistics Family,Office for National Statistics,18/04/2023,End User Software And Hardware,Business Statistics Transformation,Scc,263449,"54,785.81",Software Licenses,Large,Programme Expenditure
UK Statistics Family,Office for National Statistics,18/04/2023,Exp - Purchase Of Goods/Services - Contractors,Digital Media,Malikshaw Interim & Executive,263455,"12,376.37",Information Management Services,SME,Programme Expenditure
UK Statistics Family,Office for National Statistics,18/04/2023,Exp - Purchase Of Goods/Services - Contractors,Data Science Campus,Malikshaw Interim & Executive,263455,"15,724.80",Information Management Services,SME,Programme Expenditure
UK Statistics Family,Office for National Statistics,18/04/2023,Exp - Purchase Of Goods/Services - Incentive Payments,Survey Management,Sodexo Motivation Solutions U.K. ltd,263459,"1,237.43",Survey Response Incentive Vouchers,Large,Programme Expenditure
UK Statistics Family,Office for National Statistics,18/04/2023,Exp - Purchase Of Goods/Services - Incentive Payments,Survey Management,Sodexo Motivation Solutions U.K. ltd,263459,"1,062.15",Survey Response Incentive Vouchers,Large,Programme Expenditure
UK Statistics Family,Office for National Statistics,18/04/2023,Exp - Purchase Of Goods/Services - Incentive Payments,Survey Management,Sodexo Motivation Solutions U.K. ltd,263459,"1,132.08",Survey Response Incentive Vouchers,Large,Programme Expenditure
UK Statistics Family,Office for National Statistics,18/04/2023,Exp - Purchase Of Goods/Services - Incentive Payments,Survey Management,Sodexo Motivation Solutions U.K. ltd,263459,"25,013.43",Survey Response Incentive Vouchers,Large,Programme Expenditure
UK Statistics Family,Office for National Statistics,18/04/2023,Exp - Purchase Of Goods/Services - Incentive Payments,Survey Management,Sodexo Motivation Solutions U.K. ltd,263459,"3,868.71",Survey Response Incentive Vouchers,Large,Programme Expenditure
UK Statistics Family,Office for National Statistics,18/04/2023,Exp - Purchase Of Goods/Services - Incentive Payments,Survey Management,Sodexo Motivation Solutions U.K. ltd,263459,"1,176.60",Survey Response Incentive Vouchers,Large,Programme Expenditure
UK Statistics Family,Office for National Statistics,18/04/2023,Exp - Short-Term Contract & Agency Staff - Full Cost,Finance,Parity Resources Limited,263463,"3,019.20",Information Management Services,Large,Programme Expenditure
UK Statistics Family,Office for National Statistics,18/04/2023,Exp - Purchase Of Goods/Services - Contractors,BUSINESS STRATEGY PERFORMANCE AND PMO,Parity Resources Limited,263463,"5,154.36",Information Management Services,Large,Programme Expenditure
UK Statistics Family,Office for National Statistics,18/04/2023,Exp - Short-Term Contract & Agency Staff - Full Cost,Interviewer Management FiF,Parity Resources Limited,263463,"15,161.58",Information Management Services,Large,Programme Expenditure
UK Statistics Family,Office for National Statistics,18/04/2023,Exp - Purchase Of Goods/Services - Census Field Costs,Interviewer Management FiF,Parity Resources Limited,263463,"2,368.39",Information Management Services,Large,Programme Expenditure
UK Statistics Family,Office for National Statistics,18/04/2023,Surveys,GSS Strategy Delivery,Clearview Research,263464,"42,739.20",Statistical Services,SME,Programme Expenditure
UK Statistics Family,Office for National Statistics,19/04/2023,Capital Minor Works <25K,Property Newport,Vinci Construction UK Limited,263600,"35,325.47",Facilities Mangement Services,Large,Programme Expenditure
UK Statistics Family,Office for National Statistics,19/04/2023,Capital Major Works >25K,Property Titchfield,Vinci Construction UK Limited,263600,"35,784.00",Facilities Mangement Services,Large,Programme Expenditure
UK Statistics Family,Office for National Statistics,19/04/2023,FM Contract Payments,PROPERTY LONDON 2MS,Vinci Construction UK Limited,263600,"12,000.00",Facilities Mangement Services,Large,Programme Expenditure
UK Statistics Family,Office for National Statistics,19/04/2023,FM Contract Payments,Vinci Payments,Vinci Construction UK Limited,263600,"88,280.87",Facilities Mangement Services,Large,Programme Expenditure
UK Statistics Family,Office for National Statistics,19/04/2023,End User Software And Hardware,IT Operations,Esri (Uk) Ltd,263602,"336,000.00",Software Licenses,SME,Programme Expenditure
UK Statistics Family,Office for National Statistics,19/04/2023,End User Software And Hardware,IT Operations,Scc,263603,"87,820.80",Software Licenses,Large,Programme Expenditure
UK Statistics Family,Office for National Statistics,19/04/2023,EXP - PURCHASE OF GOODS/SERVICES - DATA ACQUISITION,International Trade And Transactions,Bureau Van Dijk Electronic Publishing,263611,"50,400.00",Data Acquisition Services,SME,Programme Expenditure
UK Statistics Family,Office for National Statistics,19/04/2023,Surveys,ECONOMIC CHANGE,Bureau Van Dijk Electronic Publishing,263611,"70,508.70",Data Acquisition Services,SME,Programme Expenditure
UK Statistics Family,Office for National Statistics,19/04/2023,Exp - Purchase Of Goods/Services - IT Contractual Services,Digital Delivery,Armakuni Ltd,263616,"61,446.00",Information Management Services,SME,Programme Expenditure
UK Statistics Family,Office for National Statistics,19/04/2023,End User Software And Hardware,Digital Media,Insight Direct,263619,"5,809.32",Software Licenses,Large,Programme Expenditure
UK Statistics Family,Office for National Statistics,19/04/2023,End User Software And Hardware,IT Operations,Insight Direct,263619,"295,302.86",Software Licenses,Large,Programme Expenditure
UK Statistics Family,Office for National Statistics,19/04/2023,Exp - Purchase Of Goods And Services Consultants,Business Architecture Transformation And Statistical Strategy,Matt Hamnet & Associates Ltd,263621,"64,897.80",Consultancy,SME,Programme Expenditure
UK Statistics Family,Office for National Statistics,20/04/2023,Hosting,IT Operations,Crown Hosting Data Centres Limited,263727,"28,573.80",Information Management Services,SME,Programme Expenditure
UK Statistics Family,Office for National Statistics,20/04/2023,Capital Major Works >25K,Property Services,Vinci Construction UK Limited,263728,"87,997.50",Facilities Mangement Services,Large,Programme Expenditure
UK Statistics Family,Office for National Statistics,20/04/2023,Plant & Machinery At Cost - Additions,Property Newport,Vinci Construction UK Limited,263728,"60,973.28",Facilities Mangement Services,Large,Programme Expenditure
UK Statistics Family,Office for National Statistics,20/04/2023,Exp - Purchase Of Goods/Services - Accommodation & Bldng Management - Miscellaneous Minor Works,Property Newport,Vinci Construction UK Limited,263728,780,Facilities Mangement Services,Large,Programme Expenditure
UK Statistics Family,Office for National Statistics,20/04/2023,Other Goods And Services,Property Newport,Vinci Construction UK Limited,263728,"53,921.47",Facilities Mangement Services,Large,Programme Expenditure
UK Statistics Family,Office for National Statistics,20/04/2023,Other Goods And Services,Property Newport,Vinci Construction UK Limited,263728,"50,918.48",Facilities Mangement Services,Large,Programme Expenditure
UK Statistics Family,Office for National Statistics,20/04/2023,FM Contract Payments,Vinci Payments,Vinci Construction UK Limited,263728,"282,487.51",Facilities Mangement Services,Large,Programme Expenditure
UK Statistics Family,Office for National Statistics,20/04/2023,Telecoms,IT Operations,Bt Global Services,263730,"52,214.77",Telecommunications,Large,Programme Expenditure
UK Statistics Family,Office for National Statistics,20/04/2023,Surveys,Social Surveys Division,Nisra,263731,"139,223.03",Statistical Services,Large,Programme Expenditure
UK Statistics Family,Office for National Statistics,20/04/2023,"ICT Outsourcing, Maintenance And Support",IT Operations,Computacenter (Uk) Limited,263733,"298,743.04",Software Licenses,Large,Programme Expenditure
UK Statistics Family,Office for National Statistics,20/04/2023,Exp - Purchase Of Goods/Services - Incentive Payments,Covid Infection Survey,Sodexo Motivation Solutions U.K. ltd,263738,"185,621.67",Survey Response Incentive Vouchers,Large,Programme Expenditure
UK Statistics Family,Office for National Statistics,20/04/2023,Exp - Purchase Of Goods And Services Consultants,INTEGRATED DATA STRATEGY AND DELIVERY,Deloitte,263744,"170,856.00",Consultancy,Large,Programme Expenditure
UK Statistics Family,Office for National Statistics,21/04/2023,Exp - Purchase Of Goods And Services Consultants,Internal Audit,Ernst & Young LLP,263850,"23,940.00",Consultancy,Large,Programme Expenditure
UK Statistics Family,Office for National Statistics,21/04/2023,Capitalised Consultancy Non IT,Planning And Info Governance,Ernst & Young LLP,263850,"6,000.00",Consultancy,Large,Programme Expenditure
UK Statistics Family,Office for National Statistics,21/04/2023,Exp - Purchase Of Goods And Services Consultants,Planning And Info Governance,Ernst & Young LLP,263850,"6,900.00",Consultancy,Large,Programme Expenditure
UK Statistics Family,Office for National Statistics,21/04/2023,Exp - Purchase Of Goods/Services - Contractors,Data Architecture,SmartSourcing Ltd,263854,"27,276.00",Information Management Services,SME,Programme Expenditure
UK Statistics Family,Office for National Statistics,21/04/2023,"ICT Outsourcing, Maintenance And Support",IT Operations,Boxxe Ltd,263855,"94,111.60",Software Licenses,SME,Programme Expenditure
UK Statistics Family,Office for National Statistics,21/04/2023,"ICT Outsourcing, Maintenance And Support",IT Operations,Insight Direct,263856,"66,555.46",Software Licenses,Large,Programme Expenditure
UK Statistics Family,Office for National Statistics,24/04/2023,EXP - PURCHASE OF GOODS/SERVICES -  NON IT CONTRACTUAL PAYMENTS,Best Practice And Impact,University of Southampton,264008,"49,893.00",Statistical Services,SME,Programme Expenditure
UK Statistics Family,Office for National Statistics,24/04/2023,Other Goods And Services,Business Development,The University of Exeter,264013,"240,000.00",Research and Feasibility Services,SME,Programme Expenditure
UK Statistics Family,Office for National Statistics,24/04/2023,Surveys,GSS Strategy Delivery,Clearview Research,264020,"26,575.20",Statistical Services,SME,Programme Expenditure
UK Statistics Family,Office for National Statistics,25/04/2023,Travel And Subsistence,Corporate Centre,Corporate Travel Management ,264269,"39,716.33",Travel and Accommodation,SME,Programme Expenditure
UK Statistics Family,Office for National Statistics,25/04/2023,"ICT Outsourcing, Maintenance And Support",Researcher Support And Data Access ,ITS Computing Limited,264270,"48,400.00",Information Management Services,Large,Programme Expenditure
UK Statistics Family,Office for National Statistics,25/04/2023,Specialist User Software And Hardware,Recruitment ,Linkedin,264272,"96,009.00",Software Licenses,Large,Programme Expenditure
UK Statistics Family,Office for National Statistics,25/04/2023,Exp - Purchase Of Goods/Services - Incentive Payments,Survey Management,Sodexo Motivation Solutions U.K. ltd,264279,952.88,Survey Response Incentive Vouchers,Large,Programme Expenditure
UK Statistics Family,Office for National Statistics,25/04/2023,Exp - Purchase Of Goods/Services - Incentive Payments,Survey Management,Sodexo Motivation Solutions U.K. ltd,264279,"1,129.87",Survey Response Incentive Vouchers,Large,Programme Expenditure
UK Statistics Family,Office for National Statistics,25/04/2023,Exp - Purchase Of Goods/Services - Incentive Payments,Survey Management,Sodexo Motivation Solutions U.K. ltd,264279,404.61,Survey Response Incentive Vouchers,Large,Programme Expenditure
UK Statistics Family,Office for National Statistics,25/04/2023,Exp - Purchase Of Goods/Services - Incentive Payments,Survey Management,Sodexo Motivation Solutions U.K. ltd,264279,"30,986.60",Survey Response Incentive Vouchers,Large,Programme Expenditure
UK Statistics Family,Office for National Statistics,25/04/2023,Exp - Purchase Of Goods/Services - Incentive Payments,Survey Management,Sodexo Motivation Solutions U.K. ltd,264279,"3,029.25",Survey Response Incentive Vouchers,Large,Programme Expenditure
UK Statistics Family,Office for National Statistics,25/04/2023,Exp - Purchase Of Goods/Services - Incentive Payments,Survey Management,Sodexo Motivation Solutions U.K. ltd,264279,584.69,Survey Response Incentive Vouchers,Large,Programme Expenditure
UK Statistics Family,Office for National Statistics,25/04/2023,Exp - Purchase Of Goods/Services - Other ICT Costs Software,Survey Processing Centre,Insight Direct,264282,"97,183.31",Software Licenses,Large,Programme Expenditure
UK Statistics Family,Office for National Statistics,26/04/2023,IT (Owned) At Cost - Additions,PROPERTY LONDON 2MS,Vinci Construction UK Limited,264447,"29,925.05",Facilities Mangement Services,Large,Programme Expenditure
UK Statistics Family,Office for National Statistics,26/04/2023,Training & Development,Programme Support,Cabinet Office,264459,"24,000.00",Training and Educational Services,Large,Programme Expenditure
UK Statistics Family,Office for National Statistics,26/04/2023,Other Goods And Services,Planning And Info Governance,Cabinet Office,264459,"4,308.00",Recruitment Services,Large,Programme Expenditure
UK Statistics Family,Office for National Statistics,26/04/2023,Hosting,CDIO UNGP,Google Cloud EMEA Limited,264460,"49,449.55",Information Management Services,Large,Programme Expenditure
UK Statistics Family,Office for National Statistics,26/04/2023,Marketing & Media,Divisional Management,Digital Unlimited Group Limited,264461,"114,038.75",Marketing and Media Services,SME,Programme Expenditure
UK Statistics Family,Office for National Statistics,26/04/2023,Buildings Under Construction,Property London,Government Property Agency (GPA),264462,"46,857.28",Office Relocation Support,Large,Programme Expenditure
UK Statistics Family,Office for National Statistics,26/04/2023,Buildings Under Construction,PROPERTY LONDON 2MS,Government Property Agency (GPA),264462,"882,714.30",Office Relocation Support,Large,Programme Expenditure
UK Statistics Family,Office for National Statistics,06/04/2023,Exp - Purchase Of Goods/Services - Incentive Payments,Covid Infection Survey,Sodexo Motivation Solutions U.K. ltd,30004087,"308,801.48",Survey Response Incentive Vouchers,Large,Programme Expenditure
UK Statistics Family,Office for National Statistics,13/04/2023,Stationery,Lodgecard,Royal Bank of Scotland,30004092,"1,189.90",Multiple Procurement Card Purchases  - Stationery ,Large,Programme Expenditure
UK Statistics Family,Office for National Statistics,13/04/2023,Other Goods And Services,GPC,Royal Bank of Scotland,30004092,"51,426.11",Multiple Procurement Card Purchases - other goods/services  ,Large,Programme Expenditure
UK Statistics Family,Office for National Statistics,13/04/2023,Travel And Subsistence,Car Hire,Royal Bank of Scotland,30004092,"27,705.01",Multiple Procurement Card Purchases - Vehicle Hire  ,Large,Programme Expenditure
UK Statistics Family,Office for National Statistics,13/04/2023,Exp - Purchase Of Goods/Services - Incentive Payments,Covid Infection Survey,Sodexo Motivation Solutions U.K. ltd,30004093,"230,111.16",Survey Response Incentive Vouchers,Large,Programme Expenditure
UK Statistics Family,Office for National Statistics,19/04/2023,Other Goods And Services,Data Science Campus,United Nations Economic Commission for Europe,30004105,"28,205.56",Support of the Modernising Statistical Production Programme ,Large,Programme Expenditure
UK Statistics Family,Office for National Statistics,28/04/2023,Specialist User Software And Hardware,Publishing Operations,Airtable,30004112,"27,316.09",Software Licenses,Large,Programme Expenditure
UK Statistics Family,Office for National Statistics,28/04/2023,Exp - Purchase Of Goods/Services - Incentive Payments,Covid Infection Survey,Sodexo Motivation Solutions U.K. ltd,30004113,"146,791.85",Survey Response Incentive Vouchers,Large,Programme Expenditure
,,,,,,,"12,107,940.20",,,
